fUST/lending_fUST_20240207
["ID","MTS","AMOUNT","RATE_DAILY","PERIOD"]
[313388129,1707258644817,-500.0,0.00029041,3]
[313388130,1707258644826,-500.0,0.00029041,3]
[313388131,1707258644835,-151.0,0.00029041,2]
[313388132,1707258644844,-500.0,0.00029041,3]
[313388133,1707258644853,-151.0,0.00029041,2]
[313388134,1707258644862,-767.98,0.00029041,3]
[313388135,1707258644871,-500.0,0.00029041,3]
[313388136,1707258644880,-500.0,0.00029041,3]
[313388137,1707258644891,-908.77,0.00029041,3]
[313388138,1707258644900,-583.9,0.00029041,3]
[313388139,1707258645002,-1686.06,0.00029041,3]
[313388140,1707258645013,-500.0,0.00029041,3]
[313388141,1707258645022,-500.0,0.00029041,3]
[313388142,1707258645042,-2490.68,0.00029041,3]
[313388143,1707258645052,-2233.19,0.00029041,3]
[313388144,1707258645063,-500.0,0.00029041,2]
[313388145,1707258645073,-500.0,0.00029041,3]
[313388146,1707258645083,-653.38,0.00029041,3]
[313388147,1707258645093,-500.0,0.00029041,3]
[313388148,1707258645103,-2916.89931683,0.00029041,3]
[313388149,1707258645124,-383.3948546,0.00029041,3]
[313388199,1707258646012,-851.49034209,0.00027698,3]
[313388206,1707258646068,-300.77965791,0.00027698,3]
[313388208,1707258646078,-513.54034209,0.00029041,3]
[313388210,1707258646090,-42.78548648,0.00029041,3]
[313388211,1707258646100,-632.86,0.00029041,3]
[313388212,1707258646110,-802.61,0.00029041,3]
[313388213,1707258646123,-501.39,0.00029041,3]
[313388214,1707258646132,-3725.28,0.00029041,3]
[313388215,1707258646142,-151.0,0.00029041,2]
[313388216,1707258646152,-554.6,0.00029041,3]
[313388217,1707258646162,-500.0,0.00029041,3]
[313388218,1707258646172,-2920.2691715,0.00029041,3]
[313388219,1707258646185,-4713.7708285,0.00029041,3]
[313388220,1707258646195,-977.71,0.00029041,3]
[313388221,1707258646205,-519.32,0.00029041,3]
[313388222,1707258646214,-1458.55,0.00029041,3]
[313388223,1707258646224,-1437.36,0.00029041,3]
[313388224,1707258646234,-500.0,0.00029064,3]
[313388225,1707258646243,-189.3733339,0.00029141,2]
[313388226,1707258646253,-280.0,0.00029147,15]
[313388227,1707258646263,-500.0,0.00029315,3]
[313388228,1707258646272,-500.0,0.00029315,3]
[313388229,1707258646282,-500.0,0.00029315,3]
[313388230,1707258646291,-767.98,0.00029315,3]
[313388231,1707258646300,-500.0,0.00029315,3]
[313388232,1707258646310,-500.0,0.00029315,3]
[313388233,1707258646320,-908.77,0.00029315,3]
[313388234,1707258646330,-583.9,0.00029315,3]
[313388235,1707258646339,-1686.06,0.00029315,3]
[313388236,1707258646349,-500.0,0.00029315,3]
[313388237,1707258646358,-500.0,0.00029315,3]
[313388238,1707258646368,-2490.68,0.00029315,3]
[313388239,1707258646377,-2233.19,0.00029315,3]
[313388240,1707258646386,-500.0,0.00029315,2]
[313388241,1707258646395,-500.0,0.00029315,3]
[313388242,1707258646405,-653.38,0.00029315,3]
[313388243,1707258646414,-500.0,0.00029315,3]
[313388244,1707258646423,-3856.62,0.00029315,3]
[313388245,1707258646432,-632.86,0.00029315,3]
[313388246,1707258646442,-802.61,0.00029315,3]
[313388247,1707258646451,-501.39,0.00029315,3]
[313388248,1707258646460,-3725.28,0.00029315,3]
[313388249,1707258646470,-500.0,0.00029315,3]
[313388250,1707258646479,-2000.18696031,0.00029315,3]
[313388251,1707258646492,-3351.63835917,0.00029315,3]
[313388360,1707259838392,-357.77400353,0.00024241,2]
[313388362,1707259838402,-387.53130135,0.00024242,2]
[313388364,1707259838411,-609.53602629,0.00024243,2]
[313388366,1707259838420,-155.02170304,0.00024244,4]
[313388368,1707259838429,-625.8157799,0.00024259,2]
[313388370,1707259838438,-160.31740645,0.00024576,2]
[313388372,1707259838447,-20951.37484427,0.00024675,2]
[313388374,1707259838457,-3487.9098353,0.00024676,2]
[313388375,1707259838466,-4132.64584843,0.00024683,2]
[313388377,1707259838476,-1656.4938396,0.00024689,2]
[313388378,1707259838487,-698.66225298,0.00025755,2]
[313388380,1707259838496,-200.0,0.00027141,15]
[313388382,1707259838505,-1448.32,0.00027387,3]
[313388384,1707259838514,-2480.04,0.00027387,3]
[313388386,1707259838525,-1118.8679287,0.00027396,2]
[313388388,1707259838534,-500.0,0.00027397,3]
[313388389,1707259838544,-500.0,0.00027397,3]
[313388390,1707259838554,-500.0,0.00027397,3]
[313388391,1707259838563,-500.0,0.00027397,3]
[313388392,1707259838573,-232.21190925,0.00027397,3]
[313388393,1707259838582,-500.0,0.00027397,3]
[313388394,1707259838591,-500.0,0.00027397,2]
[313388395,1707259838601,-500.0,0.00027397,3]
[313388396,1707259838610,-500.0,0.00027397,3]
[313388397,1707259838619,-500.0,0.00027397,3]
[313388398,1707259838629,-500.0,0.00027397,3]
[313388399,1707259838638,-595.41,0.00027397,3]
[313388400,1707259838648,-500.0,0.00027397,3]
[313388401,1707259838658,-500.0,0.00027397,3]
[313388402,1707259838667,-500.0,0.00027397,3]
[313388403,1707259838677,-500.0,0.00027397,3]
[313388404,1707259838686,-500.0,0.00027397,3]
[313388405,1707259838695,-500.0,0.00027397,3]
[313388406,1707259838705,-500.0,0.00027397,3]
[313388407,1707259838714,-500.0,0.00027397,3]
[313388408,1707259838723,-500.0,0.00027397,3]
[313388409,1707259838732,-729.22,0.00027397,3]
[313388410,1707259838741,-1246.47,0.00027397,3]
[313388411,1707259838750,-500.0,0.00027397,3]
[313388412,1707259838759,-500.0,0.00027397,3]
[313388413,1707259838768,-1916.14,0.00027397,3]
[313388414,1707259838777,-500.0,0.00027397,3]
[313388415,1707259838786,-500.0,0.00027397,3]
[313388416,1707259838795,-500.0,0.00027397,3]
[313388417,1707259838804,-500.0,0.00027397,3]
[313388418,1707259838814,-508.87,0.00027397,3]
[313388419,1707259838823,-1771.64,0.00027397,3]
[313388420,1707259838832,-3022.74,0.00027397,3]
[313388421,1707259838841,-500.0,0.00027397,3]
[313388422,1707259838850,-500.0,0.00027397,3]
[313388423,1707259838859,-598.83,0.00027397,3]
[313388424,1707259838868,-500.0,0.00027397,3]
[313388425,1707259838877,-788.3,0.00027397,3]
[313388426,1707259838886,-500.0,0.00027397,3]
[313388427,1707259838895,-2759.49,0.00027397,3]
[313388428,1707259838905,-500.0,0.00027397,3]
[313388429,1707259838914,-500.0,0.00027397,3]
[313388430,1707259838923,-1146.02,0.00027397,3]
[313388431,1707259838932,-500.0,0.00027397,3]
[313388432,1707259838941,-1312.58,0.00027397,3]
[313388433,1707259838950,-500.0,0.00027397,3]
[313388434,1707259838959,-594.32,0.00027397,3]
[313388435,1707259838968,-512.67,0.00027397,3]
[313388436,1707259838976,-5624.41,0.00027397,3]
[313388437,1707259838985,-43198.57558258,0.00027508,2]
[313388442,1707259841333,-2066.7,0.00027498,3]
[313388443,1707259841343,-13865.57364092,0.00027508,2]
[313388444,1707259841356,-10279.95,0.00027508,2]
[313388445,1707259841394,-8704.91756759,0.00027508,2]
[313388456,1707259843277,-53969.52111399,0.00027508,2]
[313388457,1707259843287,-160.31740645,0.00027555,3]
[313388458,1707259843296,-500.0,0.00027671,3]
[313388459,1707259843305,-500.0,0.00027671,3]
[313388460,1707259843314,-500.0,0.00027671,3]
[313388461,1707259843323,-500.0,0.00027671,2]
[313388462,1707259843332,-500.0,0.00027671,3]
[313388464,1707259843342,-500.0,0.00027671,3]
[313388465,1707259843352,-500.0,0.00027671,3]
[313388466,1707259843361,-500.0,0.00027671,3]
[313388467,1707259843370,-521.12,0.00027671,3]
[313388468,1707259843483,-500.0,0.00027671,3]
[313388469,1707259843493,-500.0,0.00027671,3]
[313388470,1707259843503,-729.22,0.00027671,3]
[313388471,1707259843512,-1246.47,0.00027671,3]
[313388472,1707259843521,-500.0,0.00027671,3]
[313388473,1707259843531,-500.0,0.00027671,3]
[313388474,1707259843540,-1916.14,0.00027671,3]
[313388475,1707259843549,-500.0,0.00027671,3]
[313388476,1707259843558,-500.0,0.00027671,3]
[313388477,1707259843569,-500.0,0.00027671,3]
[313388478,1707259843580,-500.0,0.00027671,3]
[313388479,1707259843589,-508.87,0.00027671,3]
[313388480,1707259843598,-1771.64,0.00027671,3]
[313388481,1707259843608,-3022.74,0.00027671,3]
[313388482,1707259843617,-500.0,0.00027671,3]
[313388483,1707259843627,-500.0,0.00027671,3]
[313388484,1707259843636,-598.83,0.00027671,3]
[313388485,1707259843645,-500.0,0.00027671,3]
[313388486,1707259843655,-788.3,0.00027671,3]
[313388487,1707259843664,-500.0,0.00027671,3]
[313388488,1707259843673,-2759.49,0.00027671,3]
[313388489,1707259843683,-500.0,0.00027671,3]
[313388490,1707259843693,-500.0,0.00027671,3]
[313388491,1707259843701,-1146.02,0.00027671,3]
[313388492,1707259843711,-500.0,0.00027671,3]
[313388493,1707259843720,-1312.58,0.00027671,3]
[313388494,1707259843729,-500.0,0.00027671,3]
[313388495,1707259843738,-594.32,0.00027671,3]
[313388496,1707259843747,-512.67,0.00027671,3]
[313388497,1707259843758,-5624.41,0.00027671,3]
[313388498,1707259843768,-500.0,0.00027945,3]
[313388499,1707259843778,-500.0,0.00027945,2]
[313388500,1707259843787,-500.0,0.00027945,3]
[313388501,1707259843796,-500.0,0.00027945,3]
[313388502,1707259843806,-500.0,0.00027945,3]
[313388503,1707259843816,-500.0,0.00027945,3]
[313388504,1707259843826,-500.0,0.00027945,3]
[313388505,1707259843836,-729.22,0.00027945,3]
[313388506,1707259843847,-1246.47,0.00027945,3]
[313388507,1707259843857,-500.0,0.00027945,3]
[313388508,1707259843866,-500.0,0.00027945,3]
[313388509,1707259843876,-1916.14,0.00027945,3]
[313388510,1707259843885,-500.0,0.00027945,3]
[313388511,1707259843894,-500.0,0.00027945,3]
[313388512,1707259843903,-508.87,0.00027945,3]
[313388513,1707259843912,-1771.64,0.00027945,3]
[313388514,1707259843921,-3022.74,0.00027945,3]
[313388515,1707259843930,-500.0,0.00027945,3]
[313388516,1707259843939,-598.83,0.00027945,3]
[313388517,1707259843948,-500.0,0.00027945,3]
[313388518,1707259843957,-788.3,0.00027945,3]
[313388519,1707259843966,-2759.49,0.00027945,3]
[313388520,1707259843977,-500.0,0.00027945,3]
[313388521,1707259843988,-500.0,0.00027945,3]
[313388522,1707259843996,-1146.02,0.00027945,3]
[313388523,1707259844006,-500.0,0.00027945,3]
[313388524,1707259844015,-1312.58,0.00027945,3]
[313388525,1707259844024,-500.0,0.00027945,3]
[313388526,1707259844032,-594.32,0.00027945,3]
[313388527,1707259844042,-512.67,0.00027945,3]
[313388528,1707259844050,-5624.41,0.00027945,3]
[313388529,1707259844060,-459.57779537,0.00028,3]
[313388530,1707259844069,-500.0,0.00028219,3]
[313388531,1707259844078,-500.0,0.00028219,2]
[313388532,1707259844087,-500.0,0.00028219,3]
[313388533,1707259844095,-388.92752099,0.00028219,3]
[313388534,1707259844105,-500.0,0.00028219,3]
[313388535,1707259844113,-500.0,0.00028219,3]
[313388536,1707259844122,-500.0,0.00028219,3]
[313388537,1707259844132,-729.22,0.00028219,3]
[313388538,1707259844141,-1246.47,0.00028219,3]
[313388539,1707259844149,-500.0,0.00028219,3]
[313388540,1707259844158,-500.0,0.00028219,3]
[313388541,1707259844167,-1916.14,0.00028219,3]
[313388542,1707259844175,-500.0,0.00028219,3]
[313388543,1707259844184,-500.0,0.00028219,3]
[313388544,1707259844193,-508.87,0.00028219,3]
[313388545,1707259844202,-1771.64,0.00028219,3]
[313388546,1707259844210,-3022.74,0.00028219,3]
[313388547,1707259844219,-500.0,0.00028219,3]
[313388548,1707259844228,-598.83,0.00028219,3]
[313388549,1707259844236,-500.0,0.00028219,3]
[313388550,1707259844246,-788.3,0.00028219,3]
[313388551,1707259844255,-2759.49,0.00028219,3]
[313388552,1707259844264,-500.0,0.00028219,3]
[313388553,1707259844273,-500.0,0.00028219,3]
[313388554,1707259844282,-1146.02,0.00028219,3]
[313388555,1707259844291,-1312.58,0.00028219,3]
[313388556,1707259844300,-500.0,0.00028219,3]
[313388557,1707259844309,-594.32,0.00028219,3]
[313388558,1707259844318,-512.67,0.00028219,3]
[313388559,1707259844327,-5624.41,0.00028219,3]
[313388560,1707259844335,-500.0,0.00028493,3]
[313388561,1707259844344,-500.0,0.00028493,2]
[313388562,1707259844353,-500.0,0.00028493,3]
[313388563,1707259844362,-500.0,0.00028493,3]
[313388564,1707259844371,-500.0,0.00028493,3]
[313388565,1707259844381,-425.95390832,0.00028493,3]
[313388566,1707259844390,-729.22,0.00028493,3]
[313388567,1707259844399,-1246.47,0.00028493,3]
[313388568,1707259844409,-500.0,0.00028493,3]
[313388569,1707259844417,-500.0,0.00028493,3]
[313388570,1707259844427,-1916.14,0.00028493,3]
[313388571,1707259844436,-500.0,0.00028493,3]
[313388572,1707259844445,-500.0,0.00028493,3]
[313388573,1707259844454,-508.87,0.00028493,3]
[313388574,1707259844463,-1771.64,0.00028493,3]
[313388575,1707259844472,-3022.74,0.00028493,3]
[313388576,1707259844484,-500.0,0.00028493,3]
[313388577,1707259844494,-598.83,0.00028493,3]
[313388578,1707259844503,-500.0,0.00028493,3]
[313388579,1707259844512,-788.3,0.00028493,3]
[313388580,1707259844521,-2759.49,0.00028493,3]
[313388581,1707259844534,-500.0,0.00028493,3]
[313388582,1707259844543,-552.62014122,0.00028493,3]
[313388583,1707259844552,-1146.02,0.00028493,3]
[313388584,1707259844562,-1312.58,0.00028493,3]
[313388585,1707259844572,-500.0,0.00028493,3]
[313388586,1707259844581,-594.32,0.00028493,3]
[313388587,1707259844590,-512.67,0.00028493,3]
[313388588,1707259844599,-5624.41,0.00028493,3]
[313388589,1707259844609,-544.03168581,0.00028667,2]
[313388590,1707259844618,-500.0,0.00028767,3]
[313388591,1707259844627,-500.0,0.00028767,2]
[313388592,1707259844636,-500.0,0.00028767,3]
[313388593,1707259844645,-500.0,0.00028767,3]
[313388594,1707259844656,-500.0,0.00028767,3]
[313388595,1707259844666,-729.22,0.00028767,3]
[313388596,1707259844675,-1246.47,0.00028767,3]
[313388597,1707259844684,-500.0,0.00028767,3]
[313388598,1707259844693,-500.0,0.00028767,3]
[313388599,1707259844703,-1916.14,0.00028767,3]
[313388600,1707259844712,-500.0,0.00028767,3]
[313388601,1707259844722,-500.0,0.00028767,3]
[313388602,1707259844731,-508.87,0.00028767,3]
[313388603,1707259844740,-1771.64,0.00028767,3]
[313388604,1707259844750,-3022.74,0.00028767,3]
[313388605,1707259844759,-500.0,0.00028767,3]
[313388606,1707259844768,-598.83,0.00028767,3]
[313388607,1707259844777,-500.0,0.00028767,3]
[313388608,1707259844786,-788.3,0.00028767,3]
[313388609,1707259844795,-2759.49,0.00028767,3]
[313388610,1707259844804,-500.0,0.00028767,3]
[313388611,1707259844814,-1146.02,0.00028767,3]
[313388612,1707259844823,-1312.58,0.00028767,3]
[313388613,1707259844833,-500.0,0.00028767,3]
[313388614,1707259844842,-594.32,0.00028767,3]
[313388615,1707259844851,-512.67,0.00028767,3]
[313388616,1707259844860,-5624.41,0.00028767,3]
[313388617,1707259844869,-178.11301323,0.00029,2]
[313388618,1707259844879,-500.0,0.00029041,3]
[313388619,1707259844888,-500.0,0.00029041,2]
[313388620,1707259844896,-500.0,0.00029041,3]
[313388621,1707259844905,-500.0,0.00029041,3]
[313388622,1707259844914,-500.0,0.00029041,3]
[313388623,1707259844923,-729.22,0.00029041,3]
[313388624,1707259844932,-1246.47,0.00029041,3]
[313388625,1707259844941,-500.0,0.00029041,3]
[313388626,1707259844949,-500.0,0.00029041,3]
[313388627,1707259844959,-1916.14,0.00029041,3]
[313388628,1707259844968,-500.0,0.00029041,3]
[313388629,1707259844978,-500.0,0.00029041,3]
[313388630,1707259844986,-508.87,0.00029041,3]
[313388631,1707259844995,-1771.64,0.00029041,3]
[313388632,1707259845005,-3022.74,0.00029041,3]
[313388633,1707259845014,-222.87,0.00029041,3]
[313388634,1707259845023,-598.83,0.00029041,3]
[313388635,1707259845032,-500.0,0.00029041,3]
[313388636,1707259845041,-788.3,0.00029041,3]
[313388637,1707259845050,-2759.49,0.00029041,3]
[313388638,1707259845059,-267.34838894,0.00029041,3]
[313388639,1707259845068,-1146.02,0.00029041,3]
[313388640,1707259845077,-1312.58,0.00029041,3]
[313388641,1707259845086,-500.0,0.00029041,3]
[313388642,1707259845095,-594.32,0.00029041,3]
[313388643,1707259845104,-512.67,0.00029041,3]
[313388644,1707259845113,-5624.41,0.00029041,3]
[313388645,1707259845122,-153.0,0.00029041,2]
[313388646,1707259845132,-151.0,0.00029103,2]
[313388647,1707259845142,-155.02170304,0.00029315,2]
[313388648,1707259845151,-313.00418309,0.00029315,6]
[313388649,1707259845160,-3251.83062565,0.00029315,2]
[313388650,1707259845169,-765.62714724,0.00029315,2]
[313388651,1707259845179,-310.02015194,0.00029315,2]
[313388652,1707259845188,-421.69855596,0.00029315,5]
[313388653,1707259845197,-169.02998363,0.00029315,5]
[313388654,1707259845206,-164.63163581,0.00029315,3]
[313388655,1707259845215,-500.0,0.00029315,2]
[313388656,1707259845223,-500.0,0.00029315,3]
[313388657,1707259845232,-1199.96061596,0.00029315,5]
[313388658,1707259845241,-500.0,0.00029315,3]
[313388659,1707259845250,-500.0,0.00029315,3]
[313388660,1707259845259,-729.22,0.00029315,3]
[313388661,1707259845269,-1246.47,0.00029315,3]
[313388662,1707259845278,-500.0,0.00029315,3]
[313388663,1707259845287,-514.71816884,0.00029315,3]
[313388664,1707259845297,-1916.14,0.00029315,3]
[313388665,1707259845306,-500.0,0.00029315,3]
[313388666,1707259845315,-500.0,0.00029315,3]
[313388667,1707259845325,-508.87,0.00029315,3]
[313388668,1707259845334,-1771.64,0.00029315,3]
[313388669,1707259845343,-3022.74,0.00029315,3]
[313388670,1707259845352,-500.0,0.00029315,2]
[313388671,1707259845361,-598.83,0.00029315,3]
[313388672,1707259845370,-500.0,0.00029315,3]
[313388673,1707259845380,-788.3,0.00029315,3]
[313388674,1707259845389,-2759.49,0.00029315,3]
[313388675,1707259845398,-1146.02,0.00029315,3]
[313388676,1707259845407,-1312.58,0.00029315,3]
[313388677,1707259845416,-500.0,0.00029315,3]
[313388678,1707259845425,-594.32,0.00029315,3]
[313388679,1707259845434,-512.67,0.00029315,3]
[313388680,1707259845443,-5624.41,0.00029315,3]
[313388681,1707259845453,-4314.8,0.00029341,20]
[313388682,1707259845463,-6131.44083832,0.00029352,2]
[313388683,1707259845474,-585.58149653,0.00029488,2]
[313388684,1707259845486,-500.0,0.00029489,2]
[313388685,1707259845495,-7108.51387002,0.00029489,2]
[313388686,1707259845505,-9081.55597281,0.00029489,2]
[313388687,1707259845519,-500.0,0.00029489,2]
[313388793,1707260843369,258025.29626859,0.00029,30]
[313388880,1707261032378,-155.01395126,0.00024738,4]
[313388881,1707261032388,-387.53130135,0.00024739,2]
[313388882,1707261032398,-1475.94494587,0.00024765,2]
[313388883,1707261032408,-39.72538782,0.00024765,2]
[313388908,1707261038427,-640.24322624,0.00024737,2]
[313388910,1707261038438,-551.87955489,0.00024765,2]
[313388912,1707261038449,-716.75323397,0.00025755,2]
[313388914,1707261038462,-500.0,0.00027397,3]
[313388916,1707261038471,-500.0,0.00027397,3]
[313388918,1707261038480,-63.52274289,0.00027397,3]
[313388926,1707261038535,-436.47725711,0.00027397,3]
[313388928,1707261038544,-500.0,0.00027397,3]
[313388930,1707261038553,-500.0,0.00027397,3]
[313388932,1707261038563,-500.0,0.00027397,2]
[313388934,1707261038573,-500.0,0.00027397,3]
[313388936,1707261038582,-500.0,0.00027397,3]
[313388938,1707261038590,-10.78349124,0.00027397,3]
[313389108,1707261041646,-489.21650876,0.00027397,3]
[313389109,1707261041655,-500.0,0.00027397,3]
[313389110,1707261041665,-500.0,0.00027671,2]
[313389111,1707261041675,-36.31828552,0.00027671,3]
[313389112,1707261041687,-463.68171448,0.00027671,3]
[313389113,1707261041696,-500.0,0.00027671,3]
[313389114,1707261041705,-830.56,0.00027934,3]
[313389115,1707261041715,-1583.82,0.00027934,3]
[313389116,1707261041724,-453.95774286,0.00027943,2]
[313389117,1707261041733,-731.63145597,0.00027943,2]
[313389118,1707261041745,-5399.80938235,0.00027943,2]
[313389119,1707261041754,-460.43809225,0.00027944,2]
[313389120,1707261041765,-11947.6027172,0.00027944,2]
[313389215,1707262169783,-9000000.0,0.00042778,30]
[313389415,1707262238641,-1187.49999999,0.00024719,2]
[313389420,1707262238692,-688.52543516,0.00024719,2]
[313389426,1707262238749,-290.81876086,0.00024719,2]
[313389483,1707262241810,-2292.22091161,0.00024719,2]
[313389484,1707262241820,-2325.67191159,0.0002472,2]
[313389485,1707262241831,-392.514265,0.0002472,2]
[313389486,1707262241840,-357.77400353,0.00024721,2]
[313389487,1707262241849,-155.02790502,0.00024721,4]
[313389488,1707262241858,-387.53130135,0.00024721,2]
[313389489,1707262241866,-4066.99833334,0.00024765,2]
[313389490,1707262241878,-1361.51496361,0.00024765,2]
[313389491,1707262241888,-2135.40433617,0.00024765,2]
[313389492,1707262241900,-18.92481337,0.00024765,2]
[313389493,1707262241908,-286.82518663,0.00024765,2]
[313389494,1707262241920,-362.68449822,0.00024765,2]
[313389495,1707262241932,-942.88722892,0.00024765,2]
[313389496,1707262241941,-358.28930559,0.00024765,2]
[313389497,1707262241950,-5508.2693986,0.00025605,2]
[313389498,1707262241959,-167.633153,0.000258,2]
[313389499,1707262241968,-168.70390725,0.000268,3]
[313389500,1707262241977,-3000.0,0.000269,2]
[313389501,1707262241986,-200.0,0.0002724,15]
[313389502,1707262241995,-16.65695268,0.000277,4]
[313389503,1707262242008,-267.36304732,0.000277,4]
[313389504,1707262242017,-135.07895233,0.000279,2]
[313389826,1707262246649,-1296.06734183,0.000279,2]
[313389828,1707262246658,-434.11055514,0.0002794,3]
[313389950,1707263431710,-2477.25839312,0.0002476,2]
[313389951,1707263431719,-387.53130135,0.00024761,2]
[313389953,1707263431728,-357.77400353,0.00024762,2]
[313389955,1707263431737,-155.01240099,0.00024763,4]
[313389957,1707263431746,-55.03186372,0.00024763,2]
[313389959,1707263431758,-439.565,0.00024763,2]
[313389961,1707263431769,-324.21963533,0.00024763,2]
[313389979,1707263441179,-9234.05128018,0.00024763,2]
[313389980,1707263441191,-5477.31651951,0.00024763,2]
[313389981,1707263441200,-221.22942838,0.00024787,2]
[313389982,1707263441210,-1813.76420265,0.00024806,2]
[313389983,1707263441219,-168.70390718,0.00025232,2]
[313389984,1707263441227,-524.0934201,0.00025332,2]
[313389985,1707263441237,-349.98577113,0.00025763,2]
[313389986,1707263441246,-216.41328556,0.00025763,2]
[313389987,1707263441255,-223.36694413,0.00025763,2]
[313389988,1707263441265,-3000.0,0.000269,2]
[313389989,1707263441274,-200.0,0.00027248,15]
[313389990,1707263441283,-278.94048446,0.00027544,2]
[313390014,1707263445870,-1296.41796374,0.00027544,2]
[313390015,1707263445880,-6631.15638014,0.00027659,2]
[313390016,1707263445889,-1407.05,0.00027813,3]
[313390017,1707263445898,-1172.55,0.00027814,3]
[313390018,1707263445907,-2477.25839312,0.00027821,2]
[313390019,1707263445917,-3296.19,0.00027822,3]
[313390020,1707263445926,-500.0,0.00027822,3]
[313390021,1707263445935,-500.0,0.00027822,3]
[313390022,1707263445943,-4812.31,0.00027822,3]
[313390023,1707263445952,-500.0,0.00027822,3]
[313390024,1707263445961,-5958.88,0.00027822,3]
[313390025,1707263445970,-500.0,0.00027823,3]
[313390026,1707263445979,-204.95939019,0.00027823,3]
[313390027,1707263445988,-500.0,0.00027823,3]
[313390028,1707263445997,-500.0,0.00027823,3]
[313390029,1707263446006,-500.0,0.00027823,3]
[313390030,1707263446015,-500.0,0.00027823,3]
[313390031,1707263446025,-532.14,0.00027823,3]
[313390032,1707263446033,-2233.02,0.00027823,3]
[313390033,1707263446042,-158.4687752,0.00027823,3]
[313390034,1707263446052,-500.0,0.00027823,3]
[313390035,1707263446061,-500.0,0.00027823,3]
[313390036,1707263446069,-500.0,0.00027823,3]
[313390037,1707263446078,-500.0,0.00027823,3]
[313390038,1707263446087,-500.0,0.00027823,3]
[313390039,1707263446096,-500.0,0.00027823,3]
[313390040,1707263446105,-500.0,0.00027823,3]
[313390041,1707263446114,-500.0,0.00027823,3]
[313390042,1707263446124,-845.93,0.00027823,3]
[313390043,1707263446133,-939.81,0.00027823,3]
[313390044,1707263446143,-500.0,0.00027823,3]
[313390045,1707263446152,-504.87146143,0.00027823,3]
[313390046,1707263446161,-500.0,0.00027823,3]
[313390047,1707263446170,-514.41808791,0.00027823,3]
[313390048,1707263446179,-500.0,0.00027823,3]
[313390049,1707263446188,-506.99209139,0.00027823,3]
[313390050,1707263446197,-500.0,0.00027823,3]
[313390051,1707263446206,-500.0,0.00027823,3]
[313390052,1707263446216,-500.0,0.00027823,3]
[313390053,1707263446226,-500.0,0.00027823,3]
[313390054,1707263446235,-500.0,0.00027823,3]
[313390055,1707263446246,-500.0,0.00027823,3]
[313390056,1707263446257,-500.0,0.00027823,3]
[313390057,1707263446267,-500.0,0.00027823,3]
[313390058,1707263446276,-513.68155613,0.00027823,3]
[313390059,1707263446286,-1385.58,0.00027823,3]
[313390060,1707263446295,-500.0,0.00027823,3]
[313390061,1707263446304,-500.0,0.00027823,3]
[313390062,1707263446314,-1963.99,0.00027823,3]
[313390063,1707263446325,-210.58292805,0.00027823,3]
[313390064,1707263446345,-500.0,0.00027823,3]
[313390065,1707263446355,-2107.44,0.00027823,3]
[313390066,1707263446365,-500.0,0.00027823,3]
[313390067,1707263446375,-1079.71,0.00027823,3]
[313390068,1707263446384,-500.0,0.00027824,3]
[313390069,1707263446394,-500.0,0.00027824,3]